bitfinex-derivatives/quotes_ETHF0:USTF0_20251001
["timestamp","ask_amount","ask_price","bid_price","bid_amount"]
[1759327802521,0.00223962,4308.9,4308.8,3.5229]
[1759327802917,0.38503962,4308.9,4308.8,3.2078]
[1759327803117,0.00223962,4308.9,4308.8,3.2078]
[1759327803325,0.00223962,4308.9,4308.8,3.5229]
[1759327804419,0.00223962,4308.9,4308.8,9.14434842]
[1759327804624,0.00223962,4308.9,4308.8,8.5229]
[1759327805023,0.172,4309.5,4309.4,0.41745]
[1759327805325,0.172,4309.5,4309.4,3.93815]
[1759327805727,0.253,4310.0,4309.5,0.3129]
[1759327805927,0.25517868,4310.0,4309.4,3.93815]
[1759327806124,0.25517868,4310.0,4309.4,3.5207]
[1759327806626,0.3828,4309.4,4308.9,3.2078]
[1759327806930,0.253,4309.3,4308.9,3.2078]
[1759327807119,0.3828,4309.2,4308.9,3.5207]
[1759327807425,0.3828,4309.2,4309.0,0.3129]
[1759327807623,0.253,4309.3,4308.9,3.6253]
[1759327807819,0.3828,4309.2,4309.0,0.3129]
[1759327808225,0.5323,4309.5,4309.3,0.41746]
[1759327808421,0.253,4309.4,4309.2,0.3129]
[1759327808726,0.3828,4309.3,4309.0,0.3129]
[1759327808929,3.5906,4309.7,4309.5,0.41744]
[1759327809226,3.5906,4309.7,4308.9,3.2078]
[1759327809227,0.253,4309.6,4308.9,3.2078]
[1759327809426,0.3828,4309.5,4308.9,3.62529]
[1759327809725,0.3828,4309.5,4308.9,3.2078]
[1759327809932,0.253,4309.6,4309.2,0.41747]
[1759327810127,0.3828,4309.5,4309.2,0.41747]
[1759327810328,0.253,4309.6,4309.5,0.41744]
[1759327810523,0.00217868,4310.0,4309.9,0.3129]
[1759327811725,0.00217868,4310.0,4309.9,3.5207]
[1759327812629,0.00217868,4310.0,4309.9,3.2078]
[1759327812931,0.00217868,4310.0,4309.9,3.5207]
[1759327813326,0.212,4310.7,4310.0,1.0435]
[1759327813526,0.212,4310.7,4310.6,0.72804]
[1759327813732,0.3828,4310.6,4310.5,3.2078]
[1759327814436,0.38505166,4310.6,4310.5,3.2078]
[1759327814633,0.63805166,4310.6,4310.5,3.2078]
[1759327815336,0.38505166,4310.6,4310.5,3.2078]
[1759327815630,0.1495,4310.5,4309.9,3.2078]
[1759327816036,0.41736,4310.4,4309.9,3.2078]
[1759327816231,0.3828,4310.4,4309.9,3.2078]
[1759327816624,0.56685,4310.5,4309.9,3.5185]
[1759327816824,0.3828,4310.3,4310.0,0.3107]
[1759327817033,0.3828,4310.3,4310.2,0.3107]
[1759327817034,0.253,4310.3,4310.2,0.3107]
[1759327817229,0.3828,4310.0,4309.9,3.2078]
[1759327817529,0.3828,4309.6,4309.3,3.2078]
[1759327817739,0.3828,4309.5,4309.3,3.2078]
[1759327817929,0.3828,4309.5,4309.3,3.93596]
[1759327818131,0.253,4309.6,4309.4,0.3107]
[1759327818338,0.3828,4309.4,4309.3,3.2078]
[1759327818930,0.56695,4309.5,4308.8,3.2078]
[1759327818931,0.3828,4308.9,4308.8,3.2078]
[1759327819136,0.6358,4308.9,4308.8,3.2078]
[1759327819332,0.6358,4308.9,4308.5,0.00285395]
[1759327819535,0.3828,4309.7,4308.8,3.2078]
[1759327819740,0.3828,4309.4,4308.8,3.2078]
[1759327819939,0.80029,4309.2,4308.8,3.2078]
[1759327820139,0.3828,4309.2,4308.8,3.2078]
[1759327820336,3.5906,4309.8,4309.2,0.41748]
[1759327820643,3.62523,4309.8,4309.3,3.62527]
[1759327820837,0.41744,4309.7,4309.3,3.2078]
[1759327821040,0.3828,4309.7,4309.3,3.62527]
[1759327821333,3.5906,4309.8,4309.4,0.41746]
[1759327821534,0.80024,4309.7,4309.3,3.2078]
[1759327821733,0.80024,4309.7,4309.3,3.62527]
[1759327821929,3.2078,4310.3,4309.3,3.62527]
[1759327821930,0.4174,4310.1,4309.3,3.2078]
[1759327822239,0.3828,4310.2,4309.9,3.62521]
[1759327822538,0.253,4310.3,4310.1,0.41739]
[1759327822729,0.1495,4310.5,4309.9,3.2078]
[1759327822930,0.3828,4311.2,4310.4,3.62516]
[1759327823437,0.6358,4311.2,4310.4,8.62516]
[1759327823642,0.253,4311.4,4311.1,0.4173]
[1759327823834,0.388,4311.3,4311.0,3.6251]
[1759327824242,0.15865793,4311.5,4311.0,3.2078]
[1759327824438,0.00915793,4311.5,4311.4,0.41727]
[1759327824633,0.388,4311.4,4311.0,3.2078]
[1759327824839,0.16075473,4311.5,4311.0,3.2078]
[1759327824840,0.388,4311.2,4311.0,3.2078]
[1759327825034,0.41729,4311.2,4311.0,3.2078]
[1759327825240,0.388,4311.1,4311.0,3.2078]
[1759327825839,0.78745,4310.6,4310.5,3.2078]
[1759327826142,1.04045,4310.6,4310.5,3.2078]
[1759327826341,0.6231,4310.6,4310.5,3.2078]
[1759327826639,0.3701,4310.6,4310.5,3.2078]
[1759327826841,0.253,4310.7,4310.5,3.62515]
[1759327827250,0.3701,4310.6,4310.5,3.2078]
[1759327827836,0.3701,4310.4,4310.0,3.2078]
[1759327828045,0.56416,4310.5,4310.0,3.2078]
[1759327828046,0.78749,4310.2,4310.0,3.2078]
[1759327828344,0.3701,4310.1,4310.0,3.2078]
[1759327829039,0.1468,4310.5,4310.0,3.2078]
[1759327829040,0.253,4310.4,4310.0,3.2078]
[1759327829238,0.6231,4310.4,4310.0,3.6252]
[1759327829945,0.3701,4310.1,4310.0,3.2078]
[1759327830949,0.3701,4310.3,4310.0,3.6252]
[1759327831238,0.67035,4310.6,4310.0,3.2078]
[1759327831439,0.3701,4310.8,4310.5,3.62516]
[1759327831639,0.5169,4311.0,4310.5,3.2078]
[1759327831839,0.7699,4311.0,4310.5,3.2078]
[1759327832242,0.1468,4311.0,4310.5,3.2078]
[1759327832441,0.1468,4311.0,4310.8,0.41733]
[1759327832638,0.3701,4311.1,4310.9,0.41731]
[1759327833040,0.67029,4311.2,4310.9,0.41731]
[1759327833240,0.1468,4311.0,4310.8,0.41733]
[1759327833444,0.3701,4310.9,4310.8,0.41733]
[1759327833644,0.3701,4310.6,4310.5,3.2078]
[1759327834940,0.6231,4310.9,4310.5,3.2078]
[1759327835144,0.3701,4310.8,4310.6,0.41735]
[1759327835539,0.3701,4310.8,4310.7,0.41733]
[1759327835750,0.78745,4310.6,4310.5,3.2078]
[1759327836052,0.3701,4310.6,4310.5,3.2078]
[1759327836352,0.3701,4310.8,4310.6,0.41735]
[1759327836851,0.3701,4310.8,4310.5,3.2078]
[1759327837146,0.3701,4310.6,4310.5,3.2078]
[1759327838241,0.78745,4310.6,4310.5,3.2078]
[1759327839841,1.04045,4310.6,4310.5,3.2078]
[1759327840442,0.6231,4310.6,4310.5,3.2078]
[1759327840650,1.04045,4310.6,4310.5,3.2078]
[1759327841045,0.3701,4310.6,4310.5,3.2078]
[1759327841247,0.6231,4310.6,4310.5,3.2078]
[1759327841652,0.3701,4310.6,4310.5,3.2078]
[1759327841847,0.6231,4310.6,4310.5,3.2078]
[1759327842156,0.3701,4310.8,4310.6,0.41734]
[1759327842349,0.6231,4310.8,4310.6,0.41734]
[1759327842649,0.3701,4310.8,4310.7,0.41734]
[1759327842850,0.3701,4310.8,4310.6,0.41735]
[1759327843052,0.3701,4310.8,4310.7,0.41734]
[1759327843351,0.3701,4310.8,4310.5,3.2078]
[1759327843352,0.253,4310.9,4310.5,3.2078]
[1759327843552,0.41733,4310.8,4310.5,3.2078]
[1759327843754,0.3701,4310.6,4310.5,3.2078]
[1759327843942,0.78745,4310.6,4310.5,3.2078]
[1759327844946,0.41738,4310.3,4310.0,0.61950531]
[1759327845146,0.67038,4310.3,4309.9,1.03692531]
[1759327845352,0.93431,4310.0,4309.9,0.61950531]
[1759327845553,0.78752,4309.9,4309.8,3.82730531]
[1759327845954,0.3701,4309.9,4309.8,3.82730531]
[1759327846156,0.1468,4310.0,4309.8,3.82730531]
[1759327846457,0.3701,4309.9,4309.8,4.24473531]
[1759327846751,0.3701,4309.9,4309.8,3.82730531]
[1759327846958,0.78752,4309.9,4309.8,3.82730531]
[1759327848759,0.78753,4309.8,4309.6,0.61950531]
[1759327849060,0.78753,4309.8,4308.7,3.2078]
[1759327849061,0.3701,4308.9,4308.8,0.61950531]
[1759327849760,0.1468,4309.5,4308.8,1.04379]
[1759327849954,0.5169,4309.5,4309.4,3.2078]
[1759327850362,0.7699,4309.5,4309.4,3.2078]
[1759327850562,0.5169,4309.5,4309.4,3.2078]
[1759327850756,0.5169,4310.0,4309.8,0.41742]
[1759327851057,0.1468,4310.5,4309.4,3.2078]
[1759327851058,0.3701,4310.4,4309.9,3.2078]
[1759327851259,0.3701,4310.4,4310.3,0.41737]
[1759327851462,0.5169,4310.5,4310.3,0.41738]
[1759327851656,0.7699,4310.5,4310.3,0.41738]
[1759327851857,0.7699,4310.5,4310.4,3.2078]
[1759327852355,0.5169,4310.5,4310.4,3.2078]
[1759327852562,0.67032,4310.9,4310.4,3.82845153]
[1759327852750,0.3701,4310.7,4310.4,3.62516]
[1759327852958,0.3701,4310.8,4310.4,3.2078]
[1759327853159,0.3701,4310.8,4310.4,3.82845153]
[1759327853451,0.253,4310.9,4310.4,3.82845153]
[1759327853653,0.3514,4310.8,4310.5,0.41735]
[1759327853857,0.3514,4310.8,4310.6,0.41735]
[1759327854058,0.253,4310.9,4310.6,0.41735]
[1759327854455,0.3514,4310.9,4310.8,0.41733]
[1759327855055,0.41733,4310.8,4310.6,0.62065153]
[1759327855263,0.4993,4310.5,4310.4,3.2078]
[1759327856877,0.1468,4311.0,4310.9,0.41732]
[1759327857176,0.1468,4311.0,4310.9,3.62512]
[1759327857363,0.4982,4311.0,4310.9,3.62512]
[1759327858173,0.3514,4311.4,4311.3,0.41728]
[1759327858976,0.6034,4311.4,4311.3,0.41728]
[1759327859180,0.3514,4311.4,4311.3,0.41728]
[1759327859372,0.6034,4311.4,4311.3,0.41728]
[1759327860075,0.252,4311.4,4310.9,3.2078]
[1759327860274,0.252,4311.4,4311.1,0.4173]
[1759327860677,0.3514,4311.3,4311.2,0.41728]
[1759327863976,0.7368,4311.0,4310.9,3.62512]
[1759327864177,0.7368,4311.0,4310.9,3.2078]
[1759327864376,0.7368,4311.0,4310.9,3.62512]
[1759327864881,0.9896,4311.0,4310.9,3.2078]
[1759327865077,0.91661,4311.0,4310.9,3.2078]
[1759327865785,0.4993,4311.0,4310.9,3.2078]
[1759327865988,0.91661,4311.0,4310.9,3.2078]
[1759327866286,0.4993,4311.0,4310.9,3.2078]
[1759327866689,0.7513,4311.0,4310.9,3.2078]
[1759327867781,1.16861,4311.0,4310.9,3.2078]
[1759327867980,0.7513,4311.0,4310.9,3.2078]
[1759327868181,0.4993,4311.0,4310.9,3.62512]
[1759327868686,0.50985473,4311.5,4311.4,0.41727]
[1759327868887,0.50985473,4311.5,4311.4,3.62507]
[1759327869684,0.51095473,4311.5,4311.4,3.2078]
[1759327870086,0.51095473,4311.5,4311.4,3.62507]
[1759327870483,0.01165473,4311.5,4311.4,3.62507]
[1759327870681,0.01165473,4311.5,4311.4,9.49694173]
[1759327870882,0.01165473,4311.5,4311.4,8.87707]
[1759327871082,0.51095473,4311.5,4311.4,3.2078]
[1759327871680,0.01165473,4311.5,4311.4,3.2078]
[1759327871881,0.01165473,4311.5,4311.4,3.82716716]
[1759327872083,0.41717,4312.4,4312.0,0.41721]
[1759327872391,0.3514,4312.4,4312.3,0.41718]
[1759327872688,0.1479,4312.5,4312.1,3.2078]
[1759327872897,0.3514,4312.2,4312.1,3.2078]
[1759327873186,0.00257398,4312.2,4312.1,3.20990689]
[1759327873386,0.00257398,4312.2,4312.1,8.20990689]
[1759327873691,0.022,4312.9,4312.1,8.46190689]
[1759327873990,0.022,4312.9,4312.8,3.62493]
[1759327874386,0.3734,4312.9,4312.8,3.2078]
[1759327874887,0.02460844,4312.9,4312.8,3.2078]
[1759327875090,0.37600844,4312.9,4312.8,3.2078]
[1759327875781,0.1479,4312.5,4312.2,0.41719]
[1759327876294,0.3514,4312.4,4312.3,0.41718]
[1759327876793,0.1479,4312.5,4312.1,3.20990689]
[1759327876794,0.3514,4312.2,4312.1,3.20990689]
[1759327876988,0.3514,4312.2,4312.1,0.00210689]
[1759327878397,0.6034,4312.2,4312.1,0.00210689]
[1759327879896,0.3514,4312.2,4312.1,0.00210689]
[1759327880101,0.6034,4312.2,4312.1,3.20990689]
[1759327880396,0.3509,4312.8,4312.6,0.41715]
[1759327880600,0.56502,4313.0,4312.6,3.2078]
[1759327880801,0.3509,4312.8,4312.6,3.2078]
[1759327880995,0.3509,4312.7,4312.1,3.20990689]
[1759327881298,0.41719,4312.3,4312.1,3.20990689]
[1759327881509,0.3509,4312.2,4312.1,0.00210689]
[1759327881689,5.3509,4312.2,4312.1,0.00210689]
[1759327881891,0.4959,4312.0,4311.6,3.2078]
[1759327882095,0.41729,4311.3,4311.1,3.2078]
[1759327882401,0.3509,4311.2,4311.1,3.2078]
[1759327882990,0.3509,4311.2,4311.1,3.21021976]
[1759327884395,0.6029,4311.2,4311.1,3.21021976]
[1759327885095,0.3509,4311.2,4311.1,0.00241976]
[1759327885295,0.6029,4311.2,4311.1,0.00241976]
[1759327887098,0.3509,4311.2,4311.1,0.00241976]
[1759327887397,0.6029,4311.2,4311.1,0.00241976]
[1759327889294,0.3575,4310.6,4310.5,3.2078]
[1759327889495,0.6095,4310.6,4310.5,3.2078]
[1759327890304,0.6095,4310.6,4310.5,3.21029995]
[1759327890894,0.3575,4310.6,4310.5,3.21029995]
[1759327891100,0.6095,4310.6,4310.5,3.21029995]
[1759327892904,0.41744,4309.7,4309.5,3.82672349]
[1759327893206,0.3575,4309.6,4309.5,3.2078]
[1759327893501,0.1436,4310.0,4309.6,0.41744]
[1759327893801,0.1436,4310.0,4309.7,0.41743]
[1759327894007,0.3575,4309.9,4309.7,0.00294036]
[1759327894205,0.77492,4309.9,4309.7,0.00294036]
[1759327896103,0.77492,4309.9,4309.7,4.036e-05]
[1759327896607,5.3575,4309.8,4309.7,4.036e-05]
[1759327897806,0.6095,4309.8,4309.7,4.036e-05]
[1759327898807,5.6095,4309.8,4308.4,3.2078]
[1759327899113,0.5011,4308.5,4308.4,3.2078]
[1759327899309,0.7531,4308.5,4308.4,3.2078]
[1759327899900,0.5011,4308.5,4308.4,3.20946508]
[1759327900305,0.252,4308.7,4308.4,8.62701508]
[1759327900510,0.6095,4308.7,4308.4,3.62701508]
[1759327900711,0.252,4308.7,4308.5,0.41755]
[1759327901012,0.3575,4308.6,4308.5,0.41755]
[1759327901509,0.1436,4309.0,4308.8,0.41751]
[1759327901709,0.5011,4309.0,4308.9,3.2078]
[1759327903100,0.5011,4309.0,4308.9,3.62531]
[1759327903300,0.9186,4309.0,4308.9,3.2078]
[1759327903510,1.1706,4309.0,4308.9,3.2078]
[1759327904510,0.7531,4309.0,4308.9,3.62531]
[1759327904709,0.7531,4309.0,4308.9,3.2078]
[1759327905209,1.1706,4309.0,4308.9,3.2078]
[1759327905408,0.3956,4309.0,4308.4,3.20946508]
[1759327905607,0.5011,4308.5,4308.4,3.20946508]
[1759327906108,0.5011,4308.5,4308.4,3.62701508]
[1759327907919,0.5011,4309.0,4308.9,0.41751]
[1759327908107,0.3575,4309.4,4309.2,0.41748]
[1759327908307,0.3575,4309.6,4309.5,0.41745]
[1759327908616,0.6095,4309.6,4309.5,3.62525]
[1759327909015,0.3575,4309.6,4309.5,3.62525]
[1759327909420,0.3575,4309.6,4309.5,3.2078]
[1759327909614,0.77494,4309.6,4309.5,3.2078]
[1759327909819,0.41746,4309.4,4309.1,0.41748]
[1759327910019,0.41746,4309.4,4309.0,3.6253]
[1759327910215,0.1436,4309.5,4309.0,3.2078]
[1759327910523,0.3575,4309.2,4309.0,3.2078]
[1759327910716,0.1436,4309.5,4309.0,3.2078]
[1759327910916,0.3575,4309.4,4309.0,3.2078]
[1759327911125,0.56106,4309.5,4309.2,0.41748]
[1759327911316,0.3575,4309.3,4309.2,0.41748]
[1759327911524,0.41748,4309.2,4309.0,3.2078]
[1759327911822,0.1436,4309.5,4309.4,0.41746]
[1759327912017,0.41749,4309.1,4309.0,3.2078]
[1759327912412,0.3575,4309.1,4309.0,3.6253]
[1759327912619,0.1436,4309.5,4309.2,0.41747]
[1759327912818,0.3575,4309.4,4309.3,0.41747]
[1759327913118,0.3575,4309.4,4309.0,3.6253]
[1759327913321,0.41748,4309.2,4309.0,3.6253]
[1759327913519,0.347,4309.1,4309.0,3.2078]
[1759327913722,0.76449,4309.1,4309.0,3.2078]
[1759327914026,0.76449,4309.1,4308.8,0.41752]
[1759327914027,0.1365,4308.5,4308.4,3.82838857]
[1759327914327,0.4835,4308.5,4308.4,3.20946508]
[1759327914522,0.90105,4308.5,4308.4,3.20946508]
[1759327914923,0.4835,4308.5,4308.4,3.62702508]
[1759327915820,0.347,4308.9,4308.7,0.41752]
[1759327916026,0.1365,4308.5,4308.4,3.62701508]
[1759327916223,0.4835,4308.5,4308.4,3.62701508]
[1759327916425,0.1365,4309.0,4308.9,0.41751]
[1759327916627,0.4835,4309.0,4308.9,3.62531]
[1759327917621,0.347,4309.4,4309.2,0.41747]
[1759327917821,0.1436,4309.5,4308.9,3.2078]
[1759327918016,0.4835,4309.0,4308.9,3.2078]
[1759327918219,0.4835,4309.0,4308.9,3.62531]
[1759327918822,0.7293,4309.0,4308.9,3.62531]
[1759327919033,0.7293,4309.0,4308.9,3.2078]
[1759327919219,0.9638,4309.0,4308.9,3.62531]
[1759327919421,1.3813,4309.0,4308.9,3.2078]
[1759327919725,0.8273,4308.6,4308.5,0.61892349]
[1759327920023,0.9638,4308.5,4308.4,3.20946508]
[1759327920228,0.4835,4309.0,4308.4,3.20946508]
[1759327920422,0.347,4308.9,4308.8,0.41751]
[1759327920826,0.8273,4308.9,4308.7,0.61892349]
[1759327921133,0.5928,4308.7,4308.6,0.61892349]
[1759327921333,0.1365,4309.0,4308.8,0.41752]
[1759327921526,0.347,4308.9,4308.8,0.41752]
[1759327921830,0.347,4308.9,4308.8,1.03926154]
[1759327922624,0.347,4308.9,4308.8,0.41752]
[1759327923024,0.1365,4309.0,4308.8,0.41752]
[1759327923328,0.7293,4309.0,4308.9,0.62205354]
[1759327923530,0.7293,4309.0,4308.9,3.82985354]
[1759327923730,0.9638,4309.0,4308.9,3.82985354]
[1759327923925,0.7293,4309.0,4308.9,3.2078]
[1759327924233,0.9638,4309.0,4308.9,3.2078]
[1759327924425,0.41754,4308.6,4308.4,0.8273762]
[1759327924626,1.2148,4308.5,4308.4,0.00166508]
[1759327924932,1.38139,4308.0,4307.8,3.2078]
[1759327925133,0.8273,4307.9,4307.8,3.2078]
[1759327925529,0.598,4307.9,4307.8,3.2078]
[1759327925731,0.347,4308.1,4307.9,0.4176]
[1759327925932,0.4835,4308.5,4308.4,0.41755]
[1759327926227,0.9638,4308.5,4308.4,3.2078]
[1759327926432,0.347,4308.4,4308.3,0.41756]
[1759327926632,0.8273,4308.4,4308.3,0.41756]
[1759327927531,0.347,4308.4,4308.3,0.41756]
[1759327928539,0.347,4308.8,4308.7,0.41753]
[1759327928837,0.347,4308.8,4308.7,3.62533]
[1759327930027,0.8273,4308.8,4308.7,3.2078]
[1759327930232,0.41757,4308.2,4308.0,0.82571112]
[1759327930532,0.1365,4308.0,4307.7,0.41762]
[1759327930731,0.4835,4308.0,4307.7,0.41762]
[1759327930935,0.4835,4308.0,4307.6,3.2078]
[1759327931239,0.4835,4308.0,4307.6,3.62543]
[1759327931436,0.4835,4308.0,4307.8,0.4176]
[1759327931631,0.4835,4308.0,4307.6,3.62542]
[1759327932031,0.4835,4308.0,4307.8,0.41761]
[1759327933231,0.90109,4308.0,4307.7,0.41762]
[1759327933432,0.4835,4308.0,4307.7,0.41762]
[1759327933733,0.4835,4308.0,4307.8,0.41761]
[1759327934238,0.4835,4308.5,4308.4,0.41755]
[1759327934435,0.1365,4308.5,4308.3,0.41756]
[1759327934642,0.4835,4308.0,4307.9,0.41997284]
[1759327937539,0.1365,4308.5,4308.4,0.41756]
[1759327937739,3.2078,4308.9,4308.5,1.04387]
[1759327937943,3.2078,4308.9,4308.8,0.41752]
[1759327938148,0.347,4308.9,4308.8,0.41752]
[1759327938543,0.347,4309.4,4309.3,0.41747]
[1759327938846,3.34669168,4310.0,4309.9,0.41741]
[1759327938847,3.69369168,4310.0,4309.9,0.41741]
[1759327941140,0.48589168,4310.0,4309.9,0.41741]
[1759327944850,0.48589168,4310.0,4309.5,0.41744]
[1759327944851,0.3719,4309.6,4309.5,0.41744]
[1759327945045,0.56146,4309.5,4309.1,3.2078]
[1759327945238,0.56146,4309.5,4309.3,0.41747]
[1759327945441,0.144,4309.0,4308.8,0.41752]
[1759327945748,0.3719,4308.9,4308.8,0.41752]
[1759327946840,0.144,4309.0,4308.6,3.2078]
[1759327947045,0.3719,4308.9,4308.7,0.41753]
[1759327947441,0.5159,4309.0,4308.9,0.41751]
[1759327949664,0.3719,4308.9,4308.7,0.41752]
[1759327949957,0.144,4308.5,4308.1,3.2078]
[1759327950256,0.3719,4308.4,4308.2,0.41757]
[1759327950460,0.3719,4308.3,4308.1,3.2078]
[1759327950657,0.3719,4308.3,4308.2,0.41757]
[1759327951962,0.3719,4308.8,4308.7,0.41752]
[1759327953559,0.5159,4309.0,4308.9,0.41751]
[1759327955865,0.41751,4308.9,4308.8,0.41751]
[1759327956166,0.78941,4308.9,4308.8,0.41751]
[1759327956362,0.3719,4308.9,4308.8,0.41751]
[1759327956858,0.3719,4308.7,4308.6,3.62533]
[1759327958966,0.8553,4308.7,4308.6,3.62533]
[1759327959559,0.6219,4308.7,4308.6,3.62533]
[1759327960669,0.8553,4308.7,4308.6,3.62533]
[1759327961666,1.27282,4308.7,4308.6,3.62533]
[1759327961866,0.8553,4308.7,4308.6,3.62533]
[1759327962059,0.6219,4308.7,4308.6,3.62533]
[1759327962264,0.3719,4308.7,4308.6,3.62533]
[1759327962466,0.5159,4309.0,4308.9,0.4175]
[1759327962663,0.3719,4308.9,4308.7,0.41752]
[1759327962863,0.4834,4308.7,4308.6,3.62533]
[1759327963068,0.8553,4308.7,4308.6,3.62533]
[1759327963567,0.144,4309.0,4308.2,0.41757]
[1759327963568,1.27286,4308.3,4308.2,0.41757]
[1759327963767,0.9993,4308.0,4307.9,0.00237284]
[1759327963970,1.2503,4308.0,4307.9,0.00237284]
[1759327964162,4.4581,4308.0,4307.9,0.00237284]
[1759327964565,9.4581,4308.0,4307.9,0.00237284]
[1759327964965,0.2334,4307.1,4307.0,3.62548]
[1759327965174,0.25,4306.7,4306.6,0.41773]
[1759327965468,0.6219,4306.7,4306.6,0.41773]
[1759327966066,0.85781265,4306.7,4306.6,0.42025178]
[1759327966368,0.37441265,4306.7,4306.6,0.42025178]
[1759327968868,0.62441265,4306.7,4306.6,0.42025178]
[1759327969064,0.00251265,4306.7,4306.6,5.67125178]
[1759327969268,0.37441265,4306.7,4306.6,5.67125178]
[1759327969468,0.37441265,4306.7,4306.6,0.67125178]
[1759327969671,0.85781265,4306.7,4306.6,0.00252178]
[1759327970262,1.10881265,4306.7,4306.6,0.00252178]
[1759327970871,0.85781265,4306.7,4306.6,0.00252178]
[1759327971070,1.10881265,4306.7,4306.6,0.42025178]
[1759327971266,0.85781265,4306.7,4306.6,0.00252178]
[1759327975072,1.10881265,4306.7,4306.6,0.00252178]
[1759327975775,0.85781265,4306.7,4306.6,0.00252178]
[1759327976178,0.86701265,4306.7,4306.6,0.00252178]
[1759327977171,1.28473265,4306.7,4306.6,0.42025178]
[1759327977770,0.86701265,4306.7,4306.6,0.42025178]
[1759327977974,0.62441265,4306.7,4306.6,0.42025178]
[1759327978176,0.86701265,4306.7,4306.6,0.42025178]
[1759327978480,0.37441265,4306.7,4306.6,5.42025178]
[1759327978784,0.00251265,4306.7,4306.6,5.42025178]
[1759327978975,0.35391265,4306.7,4306.6,5.42025178]
[1759327979478,0.83191265,4306.7,4306.6,0.42025178]
[1759327979875,1.24963265,4306.7,4306.6,0.42025178]
[1759327980071,1.24963265,4306.7,4306.6,0.00252178]
[1759327980877,0.83191265,4306.7,4306.6,0.00252178]
[1759327981082,1.08191265,4306.7,4306.6,0.00252178]
[1759327981285,0.83191265,4306.7,4306.6,0.00252178]
[1759327981486,1.08191265,4306.7,4306.6,0.00252178]
[1759327982080,0.83191265,4306.7,4306.6,0.00252178]
[1759327982386,1.08191265,4306.7,4306.6,0.00252178]
[1759327982684,0.83191265,4306.7,4306.6,0.00252178]
[1759327984979,0.83191265,4306.7,4306.6,2.178e-05]
[1759327985179,5.83191265,4306.7,4306.6,2.178e-05]
[1759327985380,0.3514,4305.4,4305.3,3.2078]
[1759327986392,0.3514,4305.4,4305.3,3.21031053]
[1759327987581,0.3514,4305.4,4305.3,0.00251053]
[1759327988287,0.6014,4305.4,4305.3,0.00251053]
[1759327989088,0.3514,4305.4,4305.3,0.42036053]
[1759327989584,3.6993,4306.0,4305.4,0.41784]
[1759327989976,0.1401,4306.0,4305.8,0.4178]
[1759327990177,0.3514,4305.9,4305.8,0.4178]
[1759327990374,0.3514,4305.9,4305.8,5.4178]
[1759327990579,0.3514,4306.4,4305.9,1.0445]
[1759327990888,0.1401,4306.5,4306.3,0.41776]
[1759327991083,0.3514,4306.4,4306.3,0.41776]
[1759327991782,0.3514,4306.4,4306.3,5.41776]
[1759327991988,0.1401,4306.5,4306.3,5.66776]
[1759327992185,0.4915,4306.5,4306.3,6.28761845]
[1759327992385,0.4915,4306.5,4306.4,0.61985845]
[1759327992583,0.35391265,4306.7,4306.5,0.41774]
[1759327992884,0.3514,4306.6,4306.5,1.03759845]
[1759327993085,0.3514,4306.6,4306.5,0.41774]
[1759327993481,0.00251265,4306.7,4306.5,6.24529188]
[1759327993676,0.3514,4306.6,4306.5,6.24529188]
[1759327993882,0.00251265,4306.7,4306.5,5.41774]
[1759327994088,0.35391265,4306.7,4306.6,1.07924021]
[1759327994284,0.00251265,4306.7,4306.6,6.07924021]
[1759327994486,0.00251265,4306.7,4306.6,5.25]
[1759327994986,0.4915,4307.5,4307.4,0.41765]
[1759327995987,0.49415641,4307.5,4307.4,1.03950555]
[1759327996187,0.49415641,4307.5,4307.4,0.41765]
[1759327996583,0.35405641,4307.5,4307.4,0.41765]
[1759327996781,0.00265641,4307.5,4307.4,6.28950555]
[1759327997086,0.3514,4308.4,4308.3,0.41756]
[1759327998084,0.35404196,4308.4,4308.3,0.41756]
[1759327999693,0.00264196,4308.4,4308.3,0.41756]
[1759327999891,0.35634196,4308.4,4308.3,0.41756]
[1759328000391,4.25149,4309.3,4308.3,0.41756]
[1759328000392,0.4938,4309.0,4308.9,0.4175]
[1759328001286,0.49548929,4309.0,4308.9,0.41929977]
[1759328001484,0.49548929,4309.0,4308.9,0.00179977]
[1759328005083,0.1378,4308.5,4307.8,0.61786166]
[1759328005282,0.1378,4308.5,4307.4,1.8849219]
[1759328005283,0.91934,4307.5,4307.4,1.8849219]
[1759328005688,0.41771,4306.8,4306.6,40.8]
[1759328005889,0.3639,4306.7,4306.6,40.8]
[1759328006088,0.3639,4306.7,4306.6,40.80202799]
[1759328008091,0.3639,4306.7,4306.6,0.00202799]
[1759328008291,5.3639,4306.7,4306.6,0.00202799]
[1759328008490,5.3639,4306.7,4306.6,40.80202799]
[1759328009001,5.3639,4306.7,4306.6,0.00202799]
[1759328009397,5.6139,4306.7,4306.6,0.00202799]
[1759328010795,3.5717,4307.3,4306.6,0.00202799]
[1759328010989,0.3639,4306.7,4306.6,0.00202799]
[1759328011193,3.8217,4306.7,4306.6,0.00202799]
[1759328012492,3.5717,4306.7,4306.6,0.00202799]
[1759328012698,3.8217,4306.7,4306.6,0.00202799]
[1759328012888,8.8217,4306.7,4306.6,0.00202799]
[1759328013398,0.78168,4306.1,4306.0,40.8]
[1759328013592,0.41791,4304.8,4304.6,3.4578]
[1759328013789,0.78181,4304.8,4304.6,3.2078]
[1759328013993,0.3639,4304.7,4304.6,3.2078]
[1759328014201,0.41791,4304.8,4304.7,0.3394]
[1759328014396,0.42076438,4304.8,4304.7,0.34203524]
[1759328014597,0.00285438,4304.8,4304.7,41.14203524]
[1759328016408,0.00285438,4304.8,4304.7,41.39203524]